bitfinex/quotes_BTCUSD_20241014
["timestamp","ask_amount","ask_price","bid_price","bid_amount"]
[1728907867702,0.001646,65023.0,65021.0,0.53366491]
[1728907867963,0.001646,65023.0,65021.0,0.53466491]
[1728907868434,0.001646,65023.0,65021.0,0.55766491]
[1728907868674,0.001646,65023.0,65022.0,0.281794]
[1728907868904,0.001646,65023.0,65022.0,0.72284152]
[1728907869372,0.001646,65023.0,65022.0,0.61044517]
[1728907869614,0.001646,65023.0,65022.0,0.62674022]
[1728907869849,0.001646,65023.0,65022.0,0.70854022]
[1728907870323,0.001646,65023.0,65022.0,0.7237861]
[1728907870557,0.001646,65023.0,65022.0,0.72575227]
[1728907870794,0.23046962,65036.0,65035.0,0.3268857]
[1728907871038,0.23046962,65036.0,65035.0,0.48041417]
[1728907871506,0.096524,65042.0,65041.0,0.153749]
[1728907872981,0.096524,65042.0,65041.0,0.161749]
[1728907873428,0.096524,65042.0,65041.0,0.008]
[1728907873658,0.177724,65042.0,65041.0,0.008]
[1728907874152,0.177724,65042.0,65041.0,0.02]
[1728907875956,0.33147,65042.0,65041.0,0.02]
[1728907876386,0.33147,65042.0,65028.0,0.01143431]
[1728907876387,0.153766,65034.0,65028.0,0.01143823]
[1728907876632,0.0993,65032.0,65027.0,0.153781]
[1728907876876,0.0993,65032.0,65028.0,0.16521819]
[1728907876877,0.0774,65031.0,65028.0,0.16521819]
[1728907877097,0.0774,65031.0,65030.0,0.153775]
[1728907877563,0.0774,65031.0,65029.0,0.153776]
[1728907877782,0.0774,65031.0,65028.0,0.155778]
[1728907878012,0.0774,65031.0,65029.0,0.16522026]
[1728907878248,0.0774,65031.0,65030.0,0.158775]
[1728907878501,0.0774,65031.0,65030.0,0.17122544]
[1728907878742,0.0774,65031.0,65030.0,0.16622544]
[1728907878984,0.0774,65031.0,65030.0,0.16522544]
[1728907879961,0.0774,65031.0,65030.0,0.16523128]
[1728907880676,0.0784,65031.0,65030.0,0.17523128]
[1728907881335,0.0784,65031.0,65030.0,0.02145628]
[1728907881803,0.0784,65031.0,65030.0,0.02645628]
[1728907882459,0.0784,65031.0,65030.0,0.18023128]
[1728907883880,0.001,65031.0,65030.0,0.33375975]
[1728907884107,0.001,65031.0,65030.0,0.34903479]
[1728907884326,0.001,65031.0,65030.0,0.33375975]
[1728907884541,0.23046962,65036.0,65035.0,0.153763]
[1728907884762,0.23046962,65036.0,65035.0,0.31874775]
[1728907885212,0.000824,65042.0,65041.0,0.153749]
[1728907885427,0.000824,65042.0,65041.0,0.16520528]
[1728907887234,0.000824,65042.0,65041.0,0.16524305]
[1728907887713,0.000824,65042.0,65041.0,0.16824305]
[1728907887948,0.000824,65042.0,65041.0,0.17624305]
[1728907888658,0.000824,65042.0,65041.0,0.34936575]
[1728907888889,0.080424,65064.0,65061.0,0.153699]
[1728907889115,0.080424,65064.0,65062.0,0.01149405]
[1728907889351,0.080424,65064.0,65063.0,0.16519105]
[1728907889599,0.080424,65064.0,65063.0,0.01149405]
[1728907889837,0.04578545,65064.0,65063.0,0.02536299]
[1728907890069,0.20447945,65064.0,65063.0,0.01682784]
[1728907890318,0.29857945,65064.0,65063.0,0.01149405]
[1728907890547,0.29857945,65064.0,65063.0,0.01682753]
[1728907890780,0.29857945,65064.0,65063.0,0.01149405]
[1728907890781,0.14488545,65064.0,65063.0,0.01149405]
[1728907891231,0.14688545,65064.0,65063.0,0.01249405]
[1728907891696,0.14488545,65064.0,65063.0,0.01149405]
[1728907892165,0.14688545,65064.0,65063.0,0.01249405]
[1728907892857,0.14688545,65064.0,65055.0,0.00853297]
[1728907892858,0.005,65056.0,65055.0,0.00853297]
[1728907893084,0.005,65050.0,65046.0,0.0085347]
[1728907893311,0.15852847,65050.0,65047.0,0.00533528]
[1728907893570,0.15852847,65050.0,65044.0,0.23046962]
[1728907893571,0.15852847,65050.0,65048.0,0.00533528]
[1728907893857,0.1766,65056.0,65049.0,0.00533528]
[1728907893858,0.1816,65056.0,65049.0,0.00533528]
[1728907894095,0.1816,65056.0,65051.0,0.153725]
[1728907894096,0.23046962,65055.0,65051.0,0.153725]
[1728907894340,0.23046962,65055.0,65052.0,0.00533528]
[1728907894626,0.1766,65056.0,65053.0,0.00533528]
[1728907894852,0.1766,65056.0,65054.0,0.153717]
[1728907895087,0.1766,65056.0,65055.0,0.15905081]
[1728907895355,0.0806,65056.0,65055.0,0.18204408]
[1728907895600,0.0806,65056.0,65055.0,0.19057849]
[1728907895831,0.0771,65062.0,65056.0,0.153712]
[1728907896083,0.0821,65062.0,65057.0,0.00533481]
[1728907896345,0.0821,65062.0,65058.0,0.00533481]
[1728907896608,0.0771,65062.0,65054.0,0.003]
[1728907896829,0.0771,65062.0,65055.0,0.00533225]
[1728907896830,0.0821,65062.0,65055.0,0.00533225]
[1728907897058,0.0821,65062.0,65056.0,0.00533225]
[1728907897308,0.0821,65062.0,65057.0,0.00533225]
[1728907897531,0.0821,65062.0,65054.0,0.001644]
[1728907897765,0.0841,65062.0,65055.0,0.01233143]
[1728907898000,0.0841,65062.0,65054.0,0.001644]
[1728907898001,0.0841,65062.0,65056.0,0.00533143]
[1728907898230,0.0821,65062.0,65057.0,0.00533143]
[1728907898514,0.0841,65062.0,65058.0,0.00533143]
[1728907898745,0.0841,65062.0,65056.0,0.153712]
[1728907898988,0.0841,65062.0,65054.0,0.04747216]
[1728907898989,0.0841,65062.0,65057.0,0.00533097]
[1728907899245,0.0841,65062.0,65058.0,0.00533097]
[1728907899479,0.0841,65062.0,65055.0,0.04582816]
[1728907899697,0.0821,65062.0,65056.0,0.00533037]
[1728907899934,0.0821,65062.0,65057.0,0.00533037]
[1728907900160,0.0841,65062.0,65056.0,0.04582816]
[1728907900388,0.0841,65062.0,65057.0,0.00533031]
[1728907900634,0.0841,65062.0,65057.0,0.001]
[1728907900852,0.0821,65062.0,65057.0,0.001]
[1728907901071,0.0841,65062.0,65057.0,0.001]
[1728907902700,0.438208,65058.0,65057.0,0.001]
[1728907902928,0.59373647,65058.0,65057.0,0.001]
[1728907903180,0.61673647,65058.0,65057.0,0.001]
[1728907903630,0.67199243,65058.0,65057.0,0.001]
[1728907903862,0.160716,65055.0,65054.0,0.001644]
[1728907904095,0.61674447,65055.0,65054.0,0.001644]
[1728907904780,0.61474447,65055.0,65054.0,0.001644]
[1728907905725,0.61674447,65055.0,65054.0,0.001644]
[1728907906952,0.62274447,65055.0,65054.0,0.002644]
[1728907907700,0.62074447,65055.0,65054.0,0.002644]
[1728907908659,0.62274447,65055.0,65054.0,0.002644]
[1728907908878,0.62074447,65055.0,65054.0,0.002644]
[1728907909783,0.62274447,65055.0,65054.0,0.002644]
[1728907912579,0.62074447,65055.0,65054.0,0.002644]
[1728907912809,0.44402847,65055.0,65054.0,0.002644]
[1728907914238,0.59774447,65055.0,65054.0,0.002644]
[1728907917247,0.62074447,65055.0,65054.0,0.002644]
[1728907917463,0.62274447,65055.0,65054.0,0.002644]
[1728907917733,0.77438498,65055.0,65054.0,0.002644]
[1728907917961,0.77638498,65055.0,65054.0,0.002644]
[1728907918186,1.46295098,65055.0,65054.0,0.002644]
[1728907918411,1.07331698,65055.0,65054.0,0.002644]
[1728907918629,0.91967647,65055.0,65054.0,0.002644]
[1728907919079,0.62271579,65055.0,65054.0,0.001644]
[1728907919300,0.82624779,65055.0,65054.0,0.002644]
[1728907919964,0.62671579,65055.0,65054.0,0.002644]
[1728907920448,0.62074447,65055.0,65054.0,0.002644]
[1728907920683,0.62374447,65055.0,65054.0,0.003644]
[1728907920911,0.49944447,65055.0,65054.0,0.003644]
[1728907921368,0.49444447,65055.0,65054.0,0.002644]
[1728907921628,0.50244447,65055.0,65054.0,0.003644]
[1728907921857,0.49844447,65055.0,65054.0,0.002644]
[1728907922332,0.61044447,65055.0,65054.0,0.003644]
[1728907922549,0.61044447,65055.0,65054.0,0.002644]
[1728907922550,0.62744447,65055.0,65054.0,0.002644]
[1728907922805,0.61544447,65055.0,65054.0,0.001644]
[1728907923026,0.85291409,65055.0,65054.0,0.002644]
[1728907923246,0.62244447,65055.0,65054.0,0.002644]
[1728907923466,0.61544447,65055.0,65054.0,0.001644]
[1728907923691,2.31632847,65055.0,65054.0,0.001644]
[1728907923914,2.32932847,65055.0,65054.0,0.002644]
[1728907924153,2.32432847,65055.0,65054.0,0.002644]
[1728907924664,2.44144147,65055.0,65054.0,0.003644]
[1728907924911,1.76193747,65055.0,65054.0,0.002644]
[1728907925132,1.72662747,65055.0,65054.0,0.002644]
[1728907925353,1.73962747,65055.0,65054.0,0.003644]
[1728907925593,0.63344447,65055.0,65054.0,0.003644]
[1728907925815,0.62044447,65055.0,65054.0,0.002644]
[1728907926280,0.63344447,65055.0,65054.0,0.003644]
[1728907926989,0.60844447,65055.0,65054.0,0.003644]
[1728907927237,0.59744447,65055.0,65054.0,0.002644]
[1728907927724,0.59044447,65055.0,65054.0,0.001644]
[1728907927957,0.42494447,65055.0,65054.0,0.002644]
[1728907928174,0.41094447,65055.0,65054.0,0.001644]
[1728907928393,0.25352847,65055.0,65054.0,0.001644]
[1728907928613,0.25352847,65055.0,65054.0,0.002644]
[1728907928614,0.27152847,65055.0,65054.0,0.002644]
[1728907928854,0.42524447,65055.0,65054.0,0.002644]
[1728907929071,0.42524447,65055.0,65054.0,0.001644]
[1728907929072,0.41224447,65055.0,65054.0,0.001644]
[1728907929313,0.25352847,65055.0,65054.0,0.001644]
[1728907929541,0.25752847,65055.0,65054.0,0.001644]
[1728907930746,0.25852847,65055.0,65054.0,0.001644]
[1728907931206,0.15852847,65055.0,65054.0,0.001644]
[1728907932167,0.005,65055.0,65054.0,0.001644]
[1728907933810,0.005,65055.0,65054.0,0.155362]
[1728907934034,0.005824,65055.0,65054.0,0.001644]
[1728907934483,0.004824,65055.0,65054.0,0.001644]
[1728907934710,0.000824,65055.0,65054.0,0.001644]
[1728907935189,0.003824,65055.0,65054.0,0.001644]
[1728907935667,0.15454,65055.0,65054.0,0.006644]
[1728907935901,0.15854,65055.0,65054.0,0.001644]
[1728907936118,0.004824,65055.0,65054.0,0.001644]
[1728907936342,0.000824,65055.0,65054.0,0.001644]
[1728907936583,0.15454,65055.0,65054.0,0.001644]
[1728907936811,0.15654,65055.0,65054.0,0.001644]
[1728907937094,0.15635247,65055.0,65054.0,0.001644]
[1728907937305,0.31476847,65055.0,65054.0,0.001644]
[1728907937539,0.31376847,65055.0,65054.0,0.001644]
[1728907938199,0.31176847,65055.0,65054.0,0.002644]
[1728907938480,0.31576847,65055.0,65054.0,0.001644]
[1728907938705,0.31676847,65055.0,65054.0,0.001644]
[1728907938935,0.31176847,65055.0,65054.0,0.001644]
[1728907939408,0.31876847,65055.0,65054.0,0.001644]
[1728907941298,0.40056847,65055.0,65054.0,0.001644]
[1728907944203,0.007824,65055.0,65054.0,0.155362]
[1728907945403,0.002824,65055.0,65054.0,0.155362]
[1728907945919,0.002824,65055.0,65054.0,0.234162]
[1728907946894,0.002824,65055.0,65054.0,0.001644]
[1728907947126,0.15654,65055.0,65054.0,0.002644]
[1728907947352,0.000824,65055.0,65054.0,0.001644]
[1728907947574,0.15454,65055.0,65054.0,0.001644]
[1728907947796,0.002824,65055.0,65054.0,0.007644]
[1728907948018,0.002824,65055.0,65054.0,0.001644]
[1728907948235,0.000824,65055.0,65054.0,0.001644]
[1728907948452,0.002824,65055.0,65054.0,0.002644]
[1728907948702,0.15654,65055.0,65054.0,0.002644]
[1728907950289,0.002824,65055.0,65054.0,0.002644]
[1728907950535,0.15654,65055.0,65054.0,0.002644]
[1728907952241,0.002824,65055.0,65054.0,0.002644]
[1728907952706,0.15654,65055.0,65054.0,0.002644]
[1728907955680,0.41376847,65055.0,65054.0,0.002644]
[1728907955940,0.60916847,65055.0,65054.0,0.002644]
[1728907956170,0.61116847,65055.0,65054.0,0.002644]
[1728907957126,0.60916847,65055.0,65054.0,0.001644]
[1728907957663,0.62916847,65055.0,65054.0,0.003644]
[1728907957905,0.77280898,65055.0,65054.0,0.002644]
[1728907958162,0.77480898,65055.0,65054.0,0.002644]
[1728907958637,0.78880898,65055.0,65054.0,0.003644]
[1728907959135,0.63516847,65055.0,65054.0,0.003644]
[1728907959633,0.62116847,65055.0,65054.0,0.002644]
[1728907959863,0.60916847,65055.0,65054.0,0.001644]
[1728907960087,0.62116847,65055.0,65054.0,0.002644]
[1728907960340,0.60916847,65055.0,65054.0,0.001644]
[1728907960799,0.62116847,65055.0,65054.0,0.002644]
[1728907961048,0.62116847,65055.0,65054.0,0.003644]
[1728907961049,0.63516847,65055.0,65054.0,0.003644]
[1728907961530,0.62116847,65055.0,65054.0,0.002644]
[1728907961769,0.63516847,65055.0,65054.0,0.003644]
[1728907962500,0.74907647,65055.0,65054.0,0.003644]
[1728907963447,0.79073131,65055.0,65054.0,0.003644]
[1728907964025,0.157472,65031.0,65030.0,0.001646]
[1728907964033,0.280472,65031.0,65030.0,0.001646]
[1728907964204,0.43400047,65031.0,65030.0,0.001646]
[1728907964624,0.43600047,65031.0,65030.0,0.001646]
[1728907965806,0.44800047,65031.0,65030.0,0.002646]
[1728907966253,0.45500047,65031.0,65030.0,0.002646]
[1728907966476,0.44800047,65031.0,65030.0,0.002646]
[1728907966895,0.45600047,65031.0,65030.0,0.002646]
[1728907967946,0.46205958,65031.0,65030.0,0.002646]
[1728907968365,0.46005958,65031.0,65030.0,0.002646]
[1728907968563,0.46205958,65031.0,65030.0,0.002646]
[1728907969803,0.46005958,65031.0,65030.0,0.002646]
[1728907970015,0.45400047,65031.0,65030.0,0.002646]
[1728907971266,0.68647009,65031.0,65030.0,0.002646]
[1728907971468,0.45600047,65031.0,65030.0,0.002646]
[1728907972136,0.68647009,65031.0,65030.0,0.002646]
[1728907972363,0.53410047,65031.0,65030.0,0.002646]
[1728907972602,0.43100047,65031.0,65030.0,0.002646]
[1728907972876,0.02,65031.0,65030.0,0.5096437]
[1728907973381,0.02,65031.0,65030.0,0.5109437]
[1728907973612,0.23046962,65046.0,65036.0,0.0013]
[1728907973882,0.23046962,65046.0,65045.0,0.234339]
[1728907974120,0.23046962,65046.0,65045.0,0.335139]
[1728907974564,0.23046962,65053.0,65052.0,0.153723]
[1728907974778,0.000824,65055.0,65054.0,0.153718]
[1728907975955,0.000824,65055.0,65054.0,0.155018]
[1728907976476,0.001824,65055.0,65054.0,0.158018]
[1728907976673,0.000824,65055.0,65054.0,0.155018]
[1728907977139,0.001824,65055.0,65054.0,0.31482002]
[1728907977376,0.23046962,65076.0,65075.0,0.153668]
[1728907977608,0.004524,65081.0,65075.0,0.1731227]
[1728907977834,0.000824,65081.0,65080.0,0.153657]
[1728907978053,0.000824,65081.0,65069.0,0.0788]
[1728907978274,0.04247884,65081.0,65069.0,0.0788]
[1728907978495,0.15366,65079.0,65070.0,0.30736]
[1728907978717,0.153659,65079.0,65071.0,0.307352]
[1728907978924,0.25448,65081.0,65075.0,0.153668]
[1728907979363,0.100824,65081.0,65072.0,0.30735]
[1728907979577,0.100824,65081.0,65072.0,0.153673]
[1728907979578,0.006,65079.0,65072.0,0.153673]
[1728907979797,0.006,65079.0,65069.0,0.0788]
[1728907980017,0.1,65080.0,65073.0,0.153673]
[1728907980261,0.1,65080.0,65069.0,0.0788]
[1728907980464,0.1,65080.0,65072.0,0.153675]
[1728907980676,0.23046962,65078.0,65072.0,0.307347]
[1728907980881,0.006,65079.0,65069.0,0.0788]
[1728907981100,0.1,65077.0,65064.0,0.307388]
[1728907981312,0.1,65077.0,65061.0,0.389302]
[1728907981313,0.153683,65069.0,65061.0,0.389302]
[1728907981526,0.002,65074.0,65061.0,0.389302]
[1728907981741,0.1037,65075.0,65061.0,0.389302]
[1728907981742,0.23046962,65071.0,65061.0,0.389302]
[1728907981965,0.153687,65067.0,65061.0,0.235601]
[1728907982173,0.46089347,65070.0,65061.0,0.0819]
[1728907982388,0.153688,65067.0,65061.0,0.0819]
[1728907982613,0.153688,65067.0,65060.0,0.153703]
[1728907982869,0.153685,65069.0,65059.0,0.307411]
[1728907983106,0.153686,65068.0,65061.0,0.156701]
[1728907983324,0.1,65066.0,65054.0,0.307433]
[1728907983531,0.002,65064.0,65045.0,0.172]
[1728907983761,0.153704,65060.0,65053.0,0.153719]
[1728907983963,0.307399,65062.0,65052.0,0.153722]
[1728907984175,0.15352847,65061.0,65050.0,0.307455]
[1728907984410,0.153705,65060.0,65053.0,0.15372]
[1728907984619,0.15352847,65061.0,65054.0,0.001]
[1728907984819,0.153705,65060.0,65054.0,0.001]
[1728907985037,0.15352847,65061.0,65050.0,0.307455]
[1728907985254,0.153706,65060.0,65053.0,0.153719]
[1728907985469,0.153706,65060.0,65044.0,0.0013]
[1728907985470,0.23046962,65060.0,65044.0,0.0013]
[1728907985677,0.38417462,65060.0,65050.0,0.307454]
[1728907985878,0.38417462,65060.0,65032.0,0.05107222]
[1728907985879,0.38417362,65060.0,65053.0,0.153719]
[1728907986112,0.153707,65059.0,65052.0,0.153722]
[1728907986336,0.153707,65059.0,65053.0,0.15372]
[1728907986541,0.004,65060.0,65057.0,0.307421]
[1728907986748,0.004,65060.0,65059.0,0.153706]
[1728907986942,0.23046962,65068.0,65066.0,0.15369]
[1728907986943,0.1,65067.0,65066.0,0.15369]
[1728907987399,0.23046962,65068.0,65062.0,0.307398]
[1728907987614,0.23046962,65068.0,65061.0,0.307402]
[1728907987877,0.1,65069.0,65064.0,0.153693]
[1728907988085,0.008,65067.0,65062.0,0.461093]
[1728907988293,0.008,65067.0,65063.0,0.153695]
[1728907988508,0.1,65069.0,65059.0,0.30741]
[1728907988719,0.153686,65068.0,65057.0,0.307418]
[1728907988929,0.153691,65066.0,65061.0,0.153701]
[1728907989363,0.1,65069.0,65056.0,0.0013]
[1728907989806,0.307386,65065.0,65054.0,0.307435]
[1728907990046,0.30739,65064.0,65054.0,0.307435]
[1728907990293,0.30739,65064.0,65045.0,0.078]
[1728907990294,0.38399809,65063.0,65045.0,0.078]
[1728907990588,0.307409,65060.0,65045.0,0.078]
[1728907990777,0.153712,65057.0,65052.0,0.153721]
[1728907990996,0.307415,65059.0,65050.0,0.307453]
[1728907991229,0.153712,65057.0,65053.0,0.15372]
[1728907991455,0.307415,65059.0,65051.0,0.153724]
[1728907991670,0.307415,65059.0,65050.0,0.307453]
[1728907991889,0.23046962,65061.0,65049.0,0.0013]
[1728907992110,0.23046962,65061.0,65046.0,0.307472]
[1728907992111,0.38417362,65060.0,65054.0,0.153716]
[1728907992333,0.38417362,65060.0,65055.0,0.153714]
[1728907992571,0.23046962,65060.0,65052.0,0.001646]
[1728907992795,0.15371,65058.0,65052.0,0.309091]
[1728907993024,0.153713,65057.0,65052.0,0.001646]
[1728907993233,0.23046962,65060.0,65055.0,0.153715]
[1728907993443,0.23046962,65060.0,65054.0,0.003]
[1728907993676,0.23046962,65060.0,65052.0,0.001646]
[1728907993677,0.153719,65054.0,65052.0,0.001646]
[1728907994159,0.153718,65054.0,65052.0,0.001646]
[1728907995050,0.153715,65056.0,65052.0,0.001646]
[1728907995292,0.1,65058.0,65052.0,0.001646]
[1728907995293,0.153711,65057.0,65052.0,0.001646]
[1728907995523,0.153714,65056.0,65052.0,0.001646]
[1728907995794,0.153714,65056.0,65052.0,0.155369]
[1728907996013,0.153714,65056.0,65052.0,0.001646]
[1728907996242,0.15372,65053.0,65052.0,0.005646]
[1728907996456,0.15372,65053.0,65052.0,0.001646]
[1728907996888,0.15372,65053.0,65052.0,0.004646]
[1728907997091,0.15372,65053.0,65052.0,0.001646]
[1728907997508,0.15972,65053.0,65052.0,0.001646]
[1728907997753,0.41324847,65053.0,65052.0,0.001646]
[1728907997996,0.40724847,65053.0,65052.0,0.001646]
[1728907998231,0.41794847,65053.0,65052.0,0.001646]
[1728907998446,0.57700668,65053.0,65052.0,0.001646]
[1728907998650,1.05003047,65053.0,65052.0,0.001646]
[1728907999084,0.64090847,65053.0,65052.0,0.001646]
[1728907999291,0.52794847,65053.0,65052.0,0.001646]
[1728907999534,0.52094847,65053.0,65052.0,0.001646]
[1728907999745,0.54894847,65053.0,65052.0,0.001646]
[1728907999958,0.64490847,65053.0,65052.0,0.001646]
[1728908000169,1.03389747,65053.0,65052.0,0.001646]
[1728908000375,0.88514047,65053.0,65052.0,0.001646]
[1728908000601,0.89914047,65053.0,65052.0,0.001646]
[1728908001024,0.90507588,65053.0,65052.0,0.001646]
[1728908001450,0.86363388,65053.0,65052.0,0.001646]
[1728908001654,0.98015988,65053.0,65052.0,0.001646]
[1728908001854,0.82772088,65053.0,65052.0,0.001646]
[1728908002060,0.54988388,65053.0,65052.0,0.001646]
[1728908002291,0.55188388,65053.0,65052.0,0.001646]
[1728908002867,0.54988388,65053.0,65052.0,0.001646]
[1728908003092,0.54394847,65053.0,65052.0,0.001646]
[1728908003322,0.46194847,65053.0,65052.0,0.001646]
[1728908003565,0.43894847,65053.0,65052.0,0.001646]
[1728908005420,0.43524847,65053.0,65052.0,0.001646]
[1728908006119,0.40724847,65053.0,65052.0,0.001646]
[1728908006347,0.41294847,65053.0,65052.0,0.001646]
[1728908006574,0.44094847,65053.0,65052.0,0.001646]
[1728908006794,0.46394847,65053.0,65052.0,0.001646]
[1728908007038,0.51304847,65053.0,65052.0,0.001646]
[1728908007274,0.31334556,65060.0,65052.0,0.001646]
[1728908007275,0.153711,65058.0,65052.0,0.001646]
[1728908007509,0.017,65053.0,65052.0,0.001646]
[1728908007759,0.01,65053.0,65052.0,0.001646]
[1728908008237,0.16372,65053.0,65052.0,0.001646]
[1728908008524,0.31724847,65053.0,65052.0,0.001646]
[1728908008781,0.30724847,65053.0,65052.0,0.001646]
[1728908009034,0.40724847,65053.0,65052.0,0.001646]
[1728908009314,0.28052847,65053.0,65052.0,0.002646]
[1728908009561,0.002,65067.0,65052.0,0.002646]
[1728908009562,0.000823,65063.0,65052.0,0.001646]
[1728908009832,0.23046962,65062.0,65055.0,0.0013]
[1728908010330,0.000823,65063.0,65062.0,0.153699]
[1728908010610,0.000823,65063.0,65062.0,0.15902292]
[1728908010831,0.000823,65063.0,65062.0,0.24593869]
[1728908011128,0.000823,65069.0,65062.0,0.24593869]
[1728908011129,0.000823,65069.0,65062.0,0.16753869]
[1728908011350,0.15435147,65069.0,65062.0,0.01383969]
[1728908011596,0.15435147,65069.0,65063.0,0.01383969]
[1728908011597,0.23046962,65068.0,65063.0,0.01383969]
[1728908011834,0.23046962,65068.0,65064.0,0.01383969]
[1728908012132,0.15352847,65066.0,65064.0,0.02448895]
[1728908012375,0.15352847,65066.0,65050.0,0.004005]
[1728908012376,0.41291847,65066.0,65065.0,0.00532392]
[1728908012617,0.41091847,65066.0,65065.0,0.00532392]
[1728908012853,0.023,65060.0,65055.0,0.005]
[1728908013091,0.307377,65067.0,65052.0,0.001646]
[1728908013092,0.1,65058.0,65056.0,0.00532578]
[1728908013358,0.1,65058.0,65056.0,0.00532636]
[1728908013359,0.25352847,65058.0,65056.0,0.00532636]
[1728908013600,0.25352847,65058.0,65057.0,0.00532636]
[1728908014363,0.25352847,65058.0,65057.0,0.00532689]
[1728908014861,0.25352847,65058.0,65052.0,0.001646]
[1728908015090,0.15352847,65057.0,65053.0,0.00533539]
[1728908015341,0.05083238,65087.0,65054.0,0.00533539]
[1728908015342,0.0037,65063.0,65054.0,0.00533539]
[1728908015563,0.0037,65063.0,65052.0,0.001646]
[1728908015564,0.003,65058.0,65055.0,0.00533539]
[1728908015751,0.003,65058.0,65056.0,0.00533539]
[1728908016011,0.1,65060.0,65054.0,0.153718]
[1728908016243,0.1,65058.0,65055.0,0.00533484]
[1728908016486,0.1,65058.0,65056.0,0.00533484]
[1728908016487,0.002,65057.0,65056.0,0.00533484]
[1728908016720,0.002,65057.0,65056.0,0.16758364]
[1728908016968,0.23046962,65068.0,65056.0,0.01387064]
[1728908017205,0.23046962,65059.0,65056.0,0.01387]
[1728908017436,0.15352847,65067.0,65053.0,0.15372]
[1728908017437,0.002,65060.0,65053.0,0.15372]
[1728908017667,0.002,65060.0,65052.0,0.001646]
[1728908017668,0.002,65060.0,65055.0,0.001646]
[1728908017895,0.1,65066.0,65056.0,0.00533475]
[1728908018119,0.15352847,65065.0,65057.0,0.00533475]
[1728908018354,0.15352847,65065.0,65055.0,0.001646]
[1728908018355,0.15352847,65065.0,65058.0,0.00533475]
[1728908018587,0.15352847,65065.0,65059.0,0.00533475]
[1728908018844,0.15352847,65065.0,65055.0,0.155361]
[1728908018845,0.15352847,65065.0,65060.0,0.00533475]
[1728908019079,0.15352847,65065.0,65061.0,0.00533475]
[1728908019296,0.15352847,65065.0,65055.0,0.001646]
[1728908019516,0.16352847,65065.0,65056.0,0.01587122]
[1728908019738,0.16352847,65065.0,65057.0,0.00533467]
[1728908019929,0.16352847,65065.0,65058.0,0.00533467]
[1728908019930,0.15352847,65065.0,65058.0,0.00533467]
[1728908020180,0.15452847,65065.0,65059.0,0.00533467]
[1728908020410,0.15452847,65065.0,65060.0,0.00533467]
[1728908020411,0.15852847,65065.0,65060.0,0.00533467]
[1728908020639,0.15952847,65065.0,65061.0,0.00533467]
[1728908020885,0.15952847,65065.0,65055.0,0.001646]
[1728908020886,0.023,65063.0,65062.0,0.00533467]
[1728908021112,0.023,65063.0,65062.0,0.00533524]
[1728908021113,0.27652847,65063.0,65062.0,0.00533524]
[1728908021391,0.1,65062.0,65055.0,0.001646]
[1728908021618,0.15352847,65061.0,65056.0,0.01387177]
[1728908021831,0.15352847,65061.0,65057.0,0.00533488]
[1728908022064,0.1,65060.0,65058.0,0.00533488]
[1728908022288,0.1,65058.0,65055.0,0.001646]
[1728908022512,0.14074175,65057.0,65056.0,0.0053358]
[1728908022958,0.1378158,65057.0,65056.0,0.0053358]
[1728908023177,0.1378158,65057.0,65055.0,0.001646]
[1728908023407,0.1378158,65057.0,65056.0,0.004]
[1728908023629,0.1378158,65057.0,65055.0,0.001646]
[1728908024076,0.1428158,65057.0,65055.0,0.001646]
[1728908024741,0.1,65056.0,65055.0,0.001646]
[1728908024969,0.25352847,65056.0,65055.0,0.00698277]
[1728908025229,0.25352847,65056.0,65055.0,0.001646]
[1728908026406,0.25652847,65056.0,65055.0,0.001646]
[1728908027099,0.27952847,65056.0,65055.0,0.001646]
[1728908027332,0.43924147,65056.0,65055.0,0.001646]
[1728908027568,0.44294147,65056.0,65055.0,0.001646]
[1728908027825,1.50807142,65056.0,65055.0,0.001646]
[1728908028052,1.11372747,65056.0,65055.0,0.001646]
[1728908028279,1.11572747,65056.0,65055.0,0.001646]
[1728908028526,1.10672747,65056.0,65055.0,0.001646]
[1728908028772,1.05328347,65056.0,65055.0,0.001646]
[1728908029029,0.43894147,65056.0,65055.0,0.001646]
[1728908029268,0.43394147,65056.0,65055.0,0.001646]
[1728908029504,0.44794147,65056.0,65055.0,0.002646]
[1728908029730,0.44794147,65056.0,65055.0,0.001646]
[1728908029953,0.44794147,65056.0,65055.0,0.002646]
[1728908029954,0.46394147,65056.0,65055.0,0.002646]
[1728908030181,0.43594147,65056.0,65055.0,0.001646]
[1728908030419,0.44994147,65056.0,65055.0,0.001646]
[1728908031829,0.43594147,65056.0,65055.0,0.001646]
[1728908032062,0.44994147,65056.0,65055.0,0.001646]
[1728908032278,0.46294147,65056.0,65055.0,0.001646]
[1728908032742,0.88118247,65056.0,65055.0,0.001646]
[1728908032970,0.46094147,65056.0,65055.0,0.001646]
[1728908033442,0.46294147,65056.0,65055.0,0.001646]
[1728908040421,0.46029384,65056.0,65055.0,0.001646]
[1728908040607,0.54039384,65056.0,65055.0,0.001646]
[1728908040880,0.63119384,65056.0,65055.0,0.001646]
[1728908041361,0.157463,65035.0,65034.0,0.23046962]
[1728908041598,0.31299147,65035.0,65034.0,0.23046962]
[1728908041857,0.155772,65031.0,65030.0,0.001646]
[1728908042079,0.30730047,65031.0,65030.0,0.001646]
[1728908042537,0.40730047,65031.0,65030.0,0.001646]
[1728908043938,0.40930047,65031.0,65030.0,0.001646]
[1728908044177,0.41430047,65031.0,65030.0,0.001646]
[1728908044436,0.44100047,65031.0,65030.0,0.001646]
[1728908044683,1.05750547,65031.0,65030.0,0.001646]
[1728908044897,0.65020047,65031.0,65030.0,0.001646]
[1728908045123,0.65120047,65031.0,65030.0,0.001646]
[1728908045389,0.64320047,65031.0,65030.0,0.001646]
[1728908045621,0.64055216,65031.0,65030.0,0.001646]
[1728908045868,0.67055216,65031.0,65030.0,0.001646]
[1728908046127,0.65655216,65031.0,65030.0,0.001646]
[1728908046361,0.74985216,65031.0,65030.0,0.001646]